Cogmind - Beta 13 X1 @@@ ROGUE MODE // 2023.06.21 @ 22:41:23 Player: Runia Result: Destroyed by 60-8ET(R) with Subdweller Beam Cannon Performance ------------- Evolutions (0) 0 Regions Visited (2) 400 Robots Destroyed (20) 100 Value Destroyed (565) 565 Prototype IDs (2) 40 Alien Tech Used (0) 0 Bonus (0) 0 TOTAL SCORE: 1105 Bonus ------- None Cogmind --------- Core Integrity 0/250 Matter 300/300 Energy 71/100 System Corruption 0% Temperature Cool (28) Movement Core (850) Ox16 Location -10/Subcaves Parts ------- > --- POWER (1) -------- (None) > --- PROPULSION (2) --- (None) > --- UTILITY (2) ------ High-capacity Storage Unit Core Shielding > --- WEAPON (2) ------- Subdweller Beam Cannon > --- INVENTORY (20) --- Light Ion Engine Light Treads Light Treads Disposable Heat Sink Structural Scanner Signal Interpreter Seismic Detector Scrap Shield Tractor Beam Medium Laser Subdweller Laser Light Assault Rifle Light Assault Rifle Light Assault Rifle Light Assault Rifle Bore Cannon Mini Grenade Launcher Maul Scrap Shield Fragment (45) Peak State ------------ > --- POWER ------------ Subdweller Power Source > --- PROPULSION ------- Myomer Leg Myomer Leg > --- UTILITY ---------- High-capacity Storage Unit Core Shielding > --- WEAPON ----------- Subdweller Beam Cannon Light Assault Rifle > --- INVENTORY -------- Light Ion Engine Light Treads Light Treads Disposable Heat Sink Structural Scanner Signal Interpreter Seismic Detector Scrap Shield Tractor Beam Medium Laser Medium Laser Light Assault Rifle Light Assault Rifle Light Assault Rifle Light Assault Rifle Bore Cannon Mini Grenade Launcher Maul Scrap Shield Fragment [Rating: 24] Favorites ----------- Power Ion Engine Engine Ion Engine Power Core Light Nuclear Core Propulsion Light Treads Treads Light Treads Leg Myomer Leg Wheel Compact Wheel Utility High-capacity Storage Unit Device Tractor Beam Storage High-capacity Storage Unit Protection Core Shielding Weapon Light Assault Rifle Energy Gun Medium Laser Energy Cannon Subdweller Beam Cannon Ballistic Gun Light Assault Rifle Launcher Mini Grenade Launcher Build | -11 -10 -10 ------- Run | Jun Mat Sub Slots Evolved . | . . . Power . | . . . Propulsion . | . . . Utility . | . . . Weapon . | . . . Parts Attached 22 | 3 15 4 Power 3 | . 3 . Engine 2 | . 2 . Core 1 | . 1 . Reactor . | . . . Propulsion 6 | 2 2 2 Treads 3 | 2 1 . Leg 2 | . . 2 Wheel 1 | . 1 . Hover . | . . . Flight . | . . . Utility 7 | . 7 . Device 4 | . 4 . Storage 2 | . 2 . Processor . | . . . Hackware . | . . . Protection 1 | . 1 . Artifact . | . . . Weapon 6 | 1 3 2 Energy Gun 1 | 1 . . Energy Cannon 1 | . . 1 Ballistic Gun 3 | . 3 . Ballistic Cannon . | . . . Launcher 1 | . . 1 Special Weapon . | . . . Impact Weapon . | . . . Slashing Weapon . | . . . Piercing Weapon . | . . . Special Melee Weapon . | . . . Unidentified Prototypes . | . . . Parts Lost 6 | . 2 4 Power 2 | . 1 1 Propulsion 3 | . 1 2 Utility . | . . . Weapon 1 | . . 1 Highest Loss Streak 4 | . 1 4 To Critical Strikes . | . . . Average Slot Usage (%) 99 | . 99 99 Engine 13 | . 13 13 Treads 22 | . 26 4 Leg 3 | . . 19 Wheel 1 | . 1 4 Device 9 | . 12 . Storage 14 | . 14 14 Protection 3 | . 1 14 Energy Gun 12 | . 14 . Energy Cannon 1 | . . 10 Ballistic Gun 13 | . 13 16 Naked Turns . | . . . Heaviest Build 55 | 12 51 55 Greatest Support 50 | 40 40 50 Greatest Overweight (x) 3 | . 3 3 Average Overweight (x) . | . . 1 Largest Inventory Capacity 20 | 8 20 20 Average Capacity 17 | 8 17 20 Most Carried 20 | 6 20 20 Average Carried 14 | 4 13 19 Final Capacity 20 | 8 20 20 Final Carried 20 | 4 20 20 Class Distribution -------------------- 77% | Mutant 17% | Subdweller-Mutant 5% | Scavenger-Mutant Dominant Class ---------------- Mutant | -10/Materials Subdweller-Mutant | -10/Subcaves Resources | -11 -10 -10 ----------- Run | Jun Mat Sub Matter Collected 475 | 129 281 65 Remotely 36 | . 36 . Salvage Created 505 | . 445 60 Parts 38 | . 33 5 Haulers Intercepted 1 | . 1 . Recyclers Shooed . | . . . Parts Field Recycled . | . . . Retrieved Matter . | . . . Parts Self-Destructed . | . . . Prevented . | . . . Kills | -11 -10 -10 ------- Run | Jun Mat Sub Combat Hostiles Destroyed 19 | . 13 6 Guns 13 | . 13 . Cannons 1 | . . 1 AOE 5 | . . 5 Classes Destroyed 4 | . 4 . Hauler 1 | . 1 . Swarmer 6 | . 6 . Grunt 5 | . 5 . Subdweller 8 | . 2 6 Best Kill Streak 6 | . 3 6 Combat Bots Only 6 | . 3 6 Max Kills in Single Turn 3 | . 1 3 Gunslinging . | . . . Exploded 3 | . . 3 Melee . | . . . Uniques/NPCs Destroyed . | . . . Combat | -11 -10 -10 -------- Run | Jun Mat Sub Damage Taken 1283 | . 618 665 Core 256 | . 72 184 Absorbed by Shields . | . . . Redirected to Shielding 43 | . 6 37 Core Remaining (%) 100 | 100 . . Volleys Fired 66 | . 52 14 Largest 2 | . 2 2 Hottest 100 | . 100 100 Shots Fired 127 | . 101 26 Gun 114 | . 101 13 Cannon 11 | . . 11 Launcher 2 | . . 2 Special . | . . . Kinetic 53 | . 40 13 Thermal 72 | . 61 11 Explosive 2 | . . 2 Electromagnetic . | . . . Robot Hit Streak 17 | . 13 17 Robot Miss Streak 4 | . 4 1 Penetration Max . | . . . Secondary Targets 1 | . 1 . Max Gunslinging Chain 1 | . 1 . Shots Hit Robots 87 | . 66 21 Core Hits 40 | . 26 14 Critical Kills . | . . . Critical Parts Destroyed . | . . . Critical Strikes 2 | . 2 . Burn 2 | . 2 . Melee Attacks . | . . . Impact . | . . . Slashing . | . . . Piercing . | . . . Sneak Attacks . | . . . Combat Hostiles . | . . . Follow-up Attacks . | . . . Damage Inflicted 1472 | . 719 753 Guns 824 | . 719 105 Cannons 192 | . . 192 Explosions 456 | . . 456 Melee . | . . . Ramming . | . . . Kinetic 275 | . 170 105 Thermal 741 | . 549 192 Explosive 456 | . . 456 Electromagnetic . | . . . Impact . | . . . Slashing . | . . . Piercing . | . . . Highest Corruption . | . . . Average Corruption . | . . . Corruption Purged . | . . . Corruption Blocked . | . . . Overload Shots . | . . . Overflow Damage . | . . . Projectiles . | . . . Explosions . | . . . Melee . | . . . Knockbacks . | . . . Impact . | . . . Kinetic . | . . . Secondary . | . . . Self-Inflicted Damage 21 | . . 21 Shots 2 | . . 2 Rammed . | . . . Targets Rammed . | . . . Kicked . | . . . Crushed . | . . . Highest Temperature 299 | . 299 39 Average Temperature 67 | . 74 17 Received Heat Transfer 288 | . 180 108 Effects 3 | . 3 . Interference 3 | . 3 . Siege Activations . | . . . Robots Corrupted . | . . . Combat Hostiles . | . . . Parts Fried . | . . . Impact Corruptions . | . . . Robots Melted . | . . . Combat Hostiles . | . . . Parts Melted 2 | . 2 . Heat Transferred 2035 | . 1776 259 Parts Sabotaged . | . . . Parts Stolen . | . . . Parts Stripped . | . . . Power Chain Reactions . | . . . Missiles Intercepted . | . . . Alert | -11 -10 -10 ------- Run | Jun Mat Sub Peak Influence 213 | . 213 . Initial . | . . . Average 43 | . 44 . Maximum Alert Level 1 | . 1 . Low Security (%) 98 | 100 98 . Level 1 1 | . 1 . Level 2 . | . . . Level 3 . | . . . Level 4 . | . . . Level 5 . | . . . High Security . | . . . Max Security . | . . . Squads Dispatched 2 | . 2 . Investigation . | . . . Extermination . | . . . Reinforcement 2 | . 2 . Assault . | . . . Garrison . | . . . Intercept . | . . . Searches Triggered . | . . . Construction Impeded . | . . . Haulers Reinforced . | . . . Active Scanning Responses . | . . . Cargo Convoy Interrupts . | . . . Stealth | -11 -10 -10 --------- Run | Jun Mat Sub Distress Signals 2 | . 2 . Communications Jammed . | . . . Distress Signals . | . . . Times Spotted 38 | . 26 12 Peak Tracking Total 8 | . 5 8 Tactical Retreats 1 | . 1 . Traps | -11 -10 -10 ------- Run | Jun Mat Sub Traps Triggered . | . . . Indirectly . | . . . Trap Hack Attempts . | . . . Triggered . | . . . Disarmed . | . . . Reprogrammed . | . . . Reused . | . . . Traps Extracted . | . . . Installed . | . . . Triggered . | . . . Machines | -11 -10 -10 ---------- Run | Jun Mat Sub Machines Disabled . | . . . Max in Single Turn . | . . . Machines Repaired . | . . . Machines Sabotaged . | . . . Overloaded Fab Kills . | . . . Hacking | -11 -10 -10 --------- Run | Jun Mat Sub Machines Accessed 7 | . 7 . Terminals 6 | . 6 . Fabricators . | . . . Repair Stations . | . . . Recycling Units 1 | . 1 . Scanalyzers . | . . . Garrison Access . | . . . Total Hacks 19 | . 19 . Successful 12 | . 12 . Failed 7 | . 7 . Catastrophic 1 | . 1 . Database Lockouts . | . . . Manual 6 | . 6 . Terminals 17 | . 17 . Fabricators . | . . . Repair Stations . | . . . Recycling Units 2 | . 2 . Scanalyzers . | . . . Garrison Access . | . . . Terminal Hacks 10 | . 10 . Part Schematic 1 | . 1 . Prototype ID Bank 1 | . 1 . Branch Access Points 1 | . 1 . Terminal Index 1 | . 1 . Unreport Threat 1 | . 1 . Locate Traps 3 | . 3 . Transport Status 1 | . 1 . Zone Layout 1 | . 1 . Fabricator Hacks . | . . . Repair Station Hacks . | . . . Recycling Unit Hacks 2 | . 2 . Report Inventory 1 | . 1 . Retrieve Components 1 | . 1 . Scanalyzer . | . . . Garrison Access Hacks . | . . . Unauthorized Hacks . | . . . Terminals . | . . . Fabricators . | . . . Repair Stations . | . . . Recycling Units . | . . . Scanalyzers . | . . . Garrison Access . | . . . Data Cores Recovered . | . . . Used . | . . . Hacking Detections 4 | . 4 . Full Trace Events . | . . . Feedback Events . | . . . Feedback Blocked . | . . . Robot Schematics Acquired . | . . . Robots Built . | . . . Authchips . | . . . Time . | . . . Total Robot Build Rating . | . . . Part Schematics Acquired 1 | . 1 . Parts Built . | . . . Authchips . | . . . Time . | . . . Total Part Build Rating . | . . . Parts Repaired . | . . . Time . | . . . Parts Recycled . | . . . Recycled Matter . | . . . Retrieved Matter . | . . . Retrieved Components 3 | . 3 . Parts Scanalyzed . | . . . Part Schematics Acquired . | . . . Parts Damaged . | . . . Bothacking | -11 -10 -10 ------------ Run | Jun Mat Sub Used RIF Installer . | . . . Robots Hacked . | . . . Non-combat . | . . . Combat . | . . . Robot Hacks Applied . | . . . Relay Couplers Released . | . . . Fabnet Peak Effective % . | . . . Robots Rewired . | . . . Allies Hacked . | . . . Hacks Repelled . | . . . Allies | -11 -10 -10 -------- Run | Jun Mat Sub Total Allies . | . . . Largest Group . | . . . Highest-Rated Group . | . . . Highest-Rated Ally . | . . . Total Orders . | . . . Ally Attacks . | . . . Total Damage . | . . . Kills . | . . . Allies Corrupted . | . . . Allies Melted . | . . . Intel | -11 -10 -10 ------- Run | Jun Mat Sub Robot Analysis Total . | . . . Derelict Logs Recovered 1 | . . 1 Drone Launches . | . . . Drone Recoveries . | . . . Exploration | -11 -10 -10 ------------- Run | Jun Mat Sub Turns Passed 1793 | 13 1446 334 Spaces Moved 801 | 7 636 158 Core . | . . . Treads 576 | 4 572 . Legs 106 | 3 . 103 Wheels 119 | . 64 55 Hover . | . . . Flight . | . . . Fastest Speed 120 | 120 145 130 Average Speed 184 | 142 186 175 Slowest Speed 260 | 160 240 260 Overloaded Moves . | . . . Propulsion Burnouts . | . . . Robots Hopped . | . . . Cave-ins Triggered . | . . . Exploration Rate (%) 36 | 2 91 17 Regions Visited 2 Branch Regions 1 Pre-discovered Areas 1 | . . 1 Known Exits Taken . | . . . Unknown Exits Taken 2 | 1 1 . Scrap Searched 2 | . . 2 Spaces Dug . | . . . Terrain Destroyed 14 | . . 14 Melee . | . . . Projectile 1 | . . 1 AOE 13 | . . 13 Terrain Rammed . | . . . Walls Destroyed . | . . . Machines Disabled . | . . . Actions | -11 -10 -10 --------- Run | Jun Mat Sub Total 1008 | 12 803 193 Wait 75 | . 67 8 Move 799 | 6 635 158 Hop . | . . . Pick Up 25 | . 22 3 Fast Attach 8 | . 6 2 Attach 6 | 3 3 . Detach 2 | 1 1 . Swap 8 | . 6 2 Drop 19 | 2 11 6 Fire 66 | . 52 14 Melee . | . . . Ram . | . . . Kick . | . . . Crush . | . . . Escape Stasis . | . . . Rewire . | . . . Trap . | . . . Miscellaneous . | . . . Route ------- -11/Junkyard -10/Materials (discovered 6 exits: [*Mat x3] / *Min x2 / [*Sub]) -10/Subcaves History --------- Turn | Location | Event 1 | -11/Junkyard | Discovered new exit (range 3) 14 | -11/Junkyard | Entered Materials 307 | -10/Materials | Build established: Mutant 330 | -10/Materials | Discovered new exit (range 16) 330 | -10/Materials | Discovered new exit (range 15) 330 | -10/Materials | Identified exit to Mines 618 | -10/Materials | Discovered new exit (range 10) 1146 | -10/Materials | Discovered new exit (range 16) 1200 | -10/Materials | Derelicts attacked the area 1460 | -10/Materials | Entered Subcaves 1533 | -10/Subcaves | Ambushed by swarm of Subdwellers 1536 | -10/Subcaves | Ambushed by Subdwellers from Twisted Machinery 1540 | -10/Subcaves | Ambushed by angry Subdweller bent on revenge 1540 | -10/Subcaves | Core integrity fell below 50% 1597 | -10/Subcaves | Learned location of Zion (-7) 1765 | -10/Subcaves | Build established: Subdweller-Mutant 1787 | -10/Subcaves | Core integrity fell below 20% 1794 | -10/Subcaves | Destroyed by 60-8ET(R) with Subdweller Beam Cannon Last Messages --------------- 01574_ Acquired Myomer Leg. 01584_ The unstable cave ceiling collapses. 01586_ Searching scrap... 01586_ Found Sub. Laser. 01586_ Found 21 Matter. 01587_ Acquired 21 matter. 01592_ Dropped Med. Laser. 01595_ Acquired Sub. Laser. 01597_ Acquired derelict log, extracted data. World map updated: -7/Zion. 01638_ The unstable cave ceiling collapses. 01679_ Searching scrap... 01679_ Found Sub. Power Source. 01679_ Found 43 Matter. 01680_ Acquired 31 matter. 01776_ K3-003(g) suffers critical hit (Destroy). 01776_ K3-003(g) destroyed. 01783_ Sub. Power Source destroyed. 01790_ Myomer Leg destroyed. 01794_ Lgt. Assault Rifle destroyed. Map ----- +----------------------------------------------------+ | ?????????????????????????????????????????????????? | | ?????????????????????????????????????????????????? | | ?????????????????????????????????????????????????? | | ?????????????????????????????????????????????????? | | ?????????????????????????????????????????????????? | | ?????????????????????????????????????????????????? | | ?????????????????????????????????????????????????? | | ?????????????????????????????????????????????????? | | ?????????????????????????????????????????????????? | | ?????????????????????????????????????????????????? | | ?????????????????????????????????????????????????? | | ?????????????????????????????????????????????????? | | ?????????????????????????????????????????????????? | | ?????????????????????????????????????????????????? | | ?????????????????????????"#??????????????????????? | | ????????????????????????"" ###???????????????????? | | ???????????????????????#"" ????????????????????? | | ???????????????????????#" " ????????????????????? | | ??????????????????????##" "" ????????????????????? | | ??????????????????????#;" ?????????????????????? | | ??????????????????????? R ?????????????????????? | | ??????????????????????? R #?????????????????????? | | ???????????????????????? #####?????????????????? | | ????????????????????????; % ##????????????????? | | ????????????????????????# #????????????????? | | ????????????????????????#@ #?????????????????? | | ????????????????????????# ###?????????????????? | | ????????####????????????# ##???????????????????? | | ???????## ##???????????# #????????????????????? | | ???????# ####???????## ##???????????????????? | | ?????### #???????# #???????????????????? | | ?????# #????#### ##??????????????????? | | ????## #????## #??????????????????? | | ????# #?#### ## #?????????????????? | | ????## #### ##? #???????????????? | | ?????### #?# #?? #???????????????? | | ???????## ### #??? ##???????????????? | | ????????## ## #??? ##????????????????? | | ?????????# ### ##??? #?????????????????? | | ?????????## ##?####????? ?????????????????? | | ??????????### #?????????????????????????????? | | ?????????#### #####???####??????????????????? | | ?????????# # ## ##### ##?????????????????? | | ????????# %* #?????????????????? | | ????????## #?????????????????? | | ?????????## ### # ## #????????????????? | | ??????????## ## ## #####? #????????????????? | | ???????????##?# ### #??? #????????????????? | | ??????????????## ### #??? # ???????????????? | | ???????????????## ## #???? ??????????????? | +----------------------------------------------------+ Best States ------------- Heat Dissipation 35 Coolant Potential 50 Energy Generation 15 Energy Capacity 250 Matter Stores 300 Matter Capacity 300 Sight Range 16 Terrain Scan Density 10 Core Shielding 20 Evasion (%) 40 Recoil Reduction 2 Item Schematics ----------------- Hcp. Storage Unit | -10/Materials | Hacked Robot Schematics ------------------ None Fabricated ------------ Nothing Alien Tech Used ----------------- None Achievements -------------- None Challenges ------------ None Game ------ Seed SpreadPhysicsMapper Manual? 0 Play Time 00:17:57 Cumulative 781.0 hours Start 2023.06.21 @ 22:20:31 End 2023.06.21 @ 22:41:23 Sessions 1 Manual Loads 0 Difficulty Rogue Special Mode None Game No. 683 Rogue 683 Adventurer 0 Explorer 0 Win Type - Total 36 Types 14/6/6/1/1/1/5/1/1 Lore% 88 Gallery% 94 Achievement% 81 Wizard Run 0 Options --------- ASCII 0 Keyboard 0 Movement Mouse Keybinds 1 Fullscreen 2 Font 24/Smallcaps Map View 76x50 Tactical HUD 1 Map Filters NONE Filters NONE Steam 1 RUN: d9d1dd81-2eb6-4e69-ae36-9af8413bad31